[Event "Titled Tuesday Blitz December 13 Early 2022"]
[White "Stanisz, Patryk"]
[Black "Jakubowska, Anna"]
[WhiteFideId "1123106"]
[BlackFideId "1121952"]
[WhiteElo "2069"]
[BlackElo "2001"]
[Result "0-1"]
[Round "05"]
[TimeControl "180+1"]
[Date "2022.12.14"]
[WhiteClock "0:00:03"]
[BlackClock "0:00:05"]

1. e4 {[%clk 0:03:00]}  Nf6 {[%clk 0:02:50]} 2. Nc3 {[%clk 0:02:57]}  d5 {[%clk 0:02:49]} 3. exd5 {[%clk 0:02:57]}  Nxd5 {[%clk 0:02:47]} 4. Nf3 {[%clk 0:02:56]}  Nxc3 {[%clk 0:02:46]} 5. bxc3 {[%clk 0:02:57]}  Bg4 {[%clk 0:02:44]} 6. d4 {[%clk 0:02:55]}  e6 {[%clk 0:02:44]} 7. h3 {[%clk 0:02:55]}  Bh5 {[%clk 0:02:43]} 8. Be2 {[%clk 0:02:47]}  Be7 {[%clk 0:02:42]} 9. O-O {[%clk 0:02:48]}  O-O {[%clk 0:02:42]} 10. c4 {[%clk 0:02:48]}  c5 {[%clk 0:02:42]} 11. c3 {[%clk 0:02:47]}  Bf6 {[%clk 0:02:37]} 12. Be3 {[%clk 0:02:45]}  Nd7 {[%clk 0:02:16]} 13. Rb1 {[%clk 0:02:44]}  Qc7 {[%clk 0:02:15]} 14. Qb3 {[%clk 0:02:42]}  b6 {[%clk 0:02:14]} 15. Rfd1 {[%clk 0:02:37]}  Rac8 {[%clk 0:02:13]} 16. Rbc1 {[%clk 0:02:36]}  Rfd8 {[%clk 0:02:04]} 17. Qc2 {[%clk 0:02:17]}  Bg6 {[%clk 0:02:01]} 18. Bd3 {[%clk 0:02:14]}  cxd4 {[%clk 0:01:47]} 19. cxd4 {[%clk 0:02:13]}  e5 {[%clk 0:01:43]} 20. Bxg6 {[%clk 0:01:47]}  hxg6 {[%clk 0:01:41]} 21. dxe5 {[%clk 0:01:43]}  Nxe5 {[%clk 0:01:41]} 22. Nxe5 {[%clk 0:01:43]}  Bxe5 {[%clk 0:01:28]} 23. Rxd8+ {[%clk 0:01:41]}  Rxd8 {[%clk 0:01:27]} 24. c5 {[%clk 0:01:38]}  Bd4 {[%clk 0:01:20]} 25. Bxd4 {[%clk 0:00:44]}  Rxd4 {[%clk 0:01:18]} 26. cxb6 {[%clk 0:00:34]}  Qxb6 {[%clk 0:01:17]} 27. Rb1 {[%clk 0:00:29]}  Qf6 {[%clk 0:01:10]} 28. Qe2 {[%clk 0:00:24]}  Qf4 {[%clk 0:01:01]} 29. Rd1 {[%clk 0:00:18]}  Re4 {[%clk 0:00:46]} 30. Qd2 {[%clk 0:00:15]}  Qe5 {[%clk 0:00:38]} 31. Qd8+ {[%clk 0:00:14]}  Kh7 {[%clk 0:00:38]} 32. g3 {[%clk 0:00:10]}  g5 {[%clk 0:00:23]} 33. Qd3 {[%clk 0:00:08]}  g6 {[%clk 0:00:22]} 34. Kg2 {[%clk 0:00:09]}  Re2 {[%clk 0:00:19]} 35. a3 {[%clk 0:00:06]}  Qe6 {[%clk 0:00:08]} 36. Qf3 {[%clk 0:00:06]}  Re5 {[%clk 0:00:07]} 37. Rd3 {[%clk 0:00:04]}  Rf5 {[%clk 0:00:07]} 38. Qe3 {[%clk 0:00:05]}  Qc6+ {[%clk 0:00:07]} 39. Kh2 {[%clk 0:00:04]}  Qc2 {[%clk 0:00:06]} 40. Rd2 {[%clk 0:00:03]}  Qc6 {[%clk 0:00:05]} 41. g4 {[%clk 0:00:03]}  Qc7+ {[%clk 0:00:05]} 42. Kg2 {[%clk 0:00:03]}  Rf4 {[%clk 0:00:05]} 43. f3 {[%clk 0:00:03]}  Qc6 {[%clk 0:00:06]} 44. Re2 {[%clk 0:00:03]}  Qf6 {[%clk 0:00:05]} 45. Kg3 {[%clk 0:00:04]}  Rc4 {[%clk 0:00:04]} 46. Kg2 {[%clk 0:00:03]}  Rc3 {[%clk 0:00:04]} 47. Qf2 {[%clk 0:00:03]}  Qf4 {[%clk 0:00:05]} 48. Re4 {[%clk 0:00:02]}  Qf6 {[%clk 0:00:04]} 49. a4 {[%clk 0:00:03]}  Rb3 {[%clk 0:00:05]} 50. Re2 {[%clk 0:00:02]}  Ra3 {[%clk 0:00:05]} 51. Qe3 {[%clk 0:00:03]}  Rxe3 {[%clk 0:00:05]} 0-1


[Site "https://www.chess.com"]

[Event "Titled Tuesday Blitz December 13 Early 2022"]
[White "Stijve, Theo"]
[Black "Tsatsalashvili, Keti"]
[WhiteFideId "1331132"]
[BlackFideId "13603434"]
[WhiteElo "2256"]
[BlackElo "2220"]
[Result "0-1"]
[Round "05"]
[TimeControl "180+1"]
[Date "2022.12.14"]
[WhiteClock "0:00:14"]
[BlackClock "0:00:09"]

1. e4 {[%clk 0:02:57]}  c5 {[%clk 0:02:59]} 2. Nf3 {[%clk 0:02:56]}  d6 {[%clk 0:02:59]} 3. d4 {[%clk 0:02:55]}  cxd4 {[%clk 0:02:58]} 4. Nxd4 {[%clk 0:02:56]}  Nf6 {[%clk 0:02:58]} 5. Nc3 {[%clk 0:02:56]}  Nc6 {[%clk 0:02:56]} 6. f3 {[%clk 0:02:54]}  e5 {[%clk 0:02:54]} 7. Nb3 {[%clk 0:02:54]}  Be6 {[%clk 0:02:50]} 8. Bg5 {[%clk 0:02:54]}  Be7 {[%clk 0:02:44]} 9. Qd2 {[%clk 0:02:52]}  h6 {[%clk 0:02:39]} 10. Bxf6 {[%clk 0:02:28]}  Bxf6 {[%clk 0:02:40]} 11. g3 {[%clk 0:02:24]}  Bg5 {[%clk 0:02:34]} 12. Qe2 {[%clk 0:02:06]}  h5 {[%clk 0:02:26]} 13. h4 {[%clk 0:02:04]}  Bh6 {[%clk 0:02:26]} 14. Bh3 {[%clk 0:01:58]}  Qb6 {[%clk 0:02:17]} 15. Rd1 {[%clk 0:01:43]}  Rd8 {[%clk 0:02:12]} 16. Nd5 {[%clk 0:01:25]}  Bxd5 {[%clk 0:02:08]} 17. Rxd5 {[%clk 0:01:21]}  Ne7 {[%clk 0:01:55]} 18. Qb5+ {[%clk 0:01:15]}  Qc6 {[%clk 0:01:30]} 19. Na5 {[%clk 0:01:09]}  Qxb5 {[%clk 0:01:26]} 20. Rxb5 {[%clk 0:01:10]}  b6 {[%clk 0:01:26]} 21. Nc4 {[%clk 0:01:06]}  Nc6 {[%clk 0:01:18]} 22. c3 {[%clk 0:00:59]}  Ke7 {[%clk 0:01:18]} 23. Ke2 {[%clk 0:00:58]}  g5 {[%clk 0:01:07]} 24. hxg5 {[%clk 0:00:55]}  Bxg5 {[%clk 0:01:08]} 25. a4 {[%clk 0:00:46]}  h4 {[%clk 0:01:06]} 26. g4 {[%clk 0:00:39]}  Ke6 {[%clk 0:00:49]} 27. a5 {[%clk 0:00:31]}  bxa5 {[%clk 0:00:48]} 28. Nxa5 {[%clk 0:00:31]}  Ne7 {[%clk 0:00:42]} 29. Ra1 {[%clk 0:00:26]}  Ng6 {[%clk 0:00:34]} 30. Kf1 {[%clk 0:00:17]}  Nf4 {[%clk 0:00:34]} 31. Bg2 {[%clk 0:00:17]}  h3 {[%clk 0:00:34]} 32. Bh1 {[%clk 0:00:18]}  Rb8 {[%clk 0:00:32]} 33. Rxb8 {[%clk 0:00:18]}  Rxb8 {[%clk 0:00:33]} 34. b4 {[%clk 0:00:18]}  d5 {[%clk 0:00:22]} 35. Nc6 {[%clk 0:00:17]}  Rc8 {[%clk 0:00:20]} 36. b5 {[%clk 0:00:18]}  d4 {[%clk 0:00:14]} 37. cxd4 {[%clk 0:00:16]}  exd4 {[%clk 0:00:15]} 38. Nxd4+ {[%clk 0:00:16]}  Kf6 {[%clk 0:00:15]} 39. Nc6 {[%clk 0:00:16]}  Nd3 {[%clk 0:00:11]} 40. Rxa7 {[%clk 0:00:16]}  Be3 {[%clk 0:00:11]} 41. e5+ {[%clk 0:00:16]}  Kg7 {[%clk 0:00:10]} 42. Ke2 {[%clk 0:00:16]}  Bxa7 {[%clk 0:00:10]} 43. Nxa7 {[%clk 0:00:15]}  Rd8 {[%clk 0:00:09]} 44. Nc6 {[%clk 0:00:16]}  Rd7 {[%clk 0:00:07]} 45. b6 {[%clk 0:00:13]}  Nc5 {[%clk 0:00:07]} 46. Na5 {[%clk 0:00:13]}  Rd5 {[%clk 0:00:06]} 47. f4 {[%clk 0:00:13]}  Rd4 {[%clk 0:00:06]} 48. b7 {[%clk 0:00:14]}  Nxb7 {[%clk 0:00:06]} 49. Nxb7 {[%clk 0:00:15]}  Rxf4 {[%clk 0:00:06]} 50. Nd6 {[%clk 0:00:15]}  Rxg4 {[%clk 0:00:06]} 51. Nf5+ {[%clk 0:00:15]}  Kf8 {[%clk 0:00:07]} 52. Ne3 {[%clk 0:00:16]}  Rg1 {[%clk 0:00:06]} 53. Bf3 {[%clk 0:00:16]}  h2 {[%clk 0:00:06]} 54. Kd3 {[%clk 0:00:16]}  h1=Q {[%clk 0:00:06]} 55. Bxh1 {[%clk 0:00:16]}  Rxh1 {[%clk 0:00:07]} 56. Ke4 {[%clk 0:00:16]}  Rh5 {[%clk 0:00:07]} 57. Nd5 {[%clk 0:00:16]}  Kg7 {[%clk 0:00:07]} 58. Nf6 {[%clk 0:00:17]}  Rg5 {[%clk 0:00:07]} 59. Nd5 {[%clk 0:00:16]}  Rg6 {[%clk 0:00:07]} 60. Ne7 {[%clk 0:00:16]}  Re6 {[%clk 0:00:07]} 61. Nf5+ {[%clk 0:00:16]}  Kf8 {[%clk 0:00:07]} 62. Nd4 {[%clk 0:00:17]}  Ra6 {[%clk 0:00:07]} 63. Kd5 {[%clk 0:00:17]}  Ra4 {[%clk 0:00:08]} 64. Nf5 {[%clk 0:00:18]}  Ra5+ {[%clk 0:00:08]} 65. Ke4 {[%clk 0:00:18]}  Ke8 {[%clk 0:00:08]} 66. Nd6+ {[%clk 0:00:18]}  Ke7 {[%clk 0:00:09]} 67. Nc4 {[%clk 0:00:18]}  Ra4 {[%clk 0:00:08]} 68. Kd5 {[%clk 0:00:18]}  Rb4 {[%clk 0:00:08]} 69. Nd6 {[%clk 0:00:18]}  Rb1 {[%clk 0:00:08]} 70. Nf5+ {[%clk 0:00:18]}  Ke8 {[%clk 0:00:08]} 71. Nd6+ {[%clk 0:00:17]}  Kf8 {[%clk 0:00:09]} 72. Ne4 {[%clk 0:00:17]}  Re1 {[%clk 0:00:09]} 73. Nc5 {[%clk 0:00:16]}  Ke7 {[%clk 0:00:09]} 74. Ne4 {[%clk 0:00:16]}  Rd1+ {[%clk 0:00:09]} 75. Kc4 {[%clk 0:00:15]}  Ke6 {[%clk 0:00:10]} 76. Ng5+ {[%clk 0:00:15]}  Kxe5 {[%clk 0:00:10]} 77. Nxf7+ {[%clk 0:00:15]}  Kf6 {[%clk 0:00:09]} 78. Nh6 {[%clk 0:00:14]}  Rg1 {[%clk 0:00:09]} 79. Kd5 {[%clk 0:00:14]}  Rg6 {[%clk 0:00:09]} 0-1


[Site "https://www.chess.com"]

[Event "Titled Tuesday Blitz December 13 Early 2022"]
[White "Tarlabasi, Emirhan"]
[Black "Abasov, Nijat"]
[WhiteFideId "6350275"]
[BlackFideId "13402960"]
[WhiteElo "2622"]
[BlackElo "2983"]
[Result "0-1"]
[Round "05"]
[TimeControl "180+1"]
[Date "2022.12.14"]
[WhiteClock "0:00:03"]
[BlackClock "0:00:26"]

1. Nf3 {[%clk 0:03:00]}  c5 {[%clk 0:03:00]} 2. c4 {[%clk 0:03:01]}  Nc6 {[%clk 0:02:59]} 3. b3 {[%clk 0:03:02]}  Nf6 {[%clk 0:02:54]} 4. Bb2 {[%clk 0:03:01]}  e6 {[%clk 0:02:53]} 5. g3 {[%clk 0:03:01]}  b6 {[%clk 0:02:47]} 6. Bg2 {[%clk 0:03:01]}  Bb7 {[%clk 0:02:48]} 7. O-O {[%clk 0:03:01]}  Be7 {[%clk 0:02:48]} 8. Nc3 {[%clk 0:03:01]}  O-O {[%clk 0:02:48]} 9. d4 {[%clk 0:03:01]}  cxd4 {[%clk 0:02:42]} 10. Nxd4 {[%clk 0:03:02]}  Rc8 {[%clk 0:02:31]} 11. Rc1 {[%clk 0:03:00]}  d6 {[%clk 0:02:27]} 12. Qd2 {[%clk 0:02:52]}  Qd7 {[%clk 0:02:27]} 13. Rfd1 {[%clk 0:02:53]}  Rfd8 {[%clk 0:02:19]} 14. h3 {[%clk 0:02:49]}  Nxd4 {[%clk 0:02:14]} 15. Qxd4 {[%clk 0:02:35]}  Bxg2 {[%clk 0:02:13]} 16. Kxg2 {[%clk 0:02:36]}  Qb7+ {[%clk 0:02:13]} 17. f3 {[%clk 0:02:24]}  Bf8 {[%clk 0:02:03]} 18. e4 {[%clk 0:02:20]}  a6 {[%clk 0:01:59]} 19. Rc2 {[%clk 0:02:02]}  b5 {[%clk 0:01:56]} 20. cxb5 {[%clk 0:02:02]}  axb5 {[%clk 0:01:57]} 21. Rdc1 {[%clk 0:02:03]}  Ra8 {[%clk 0:01:42]} 22. h4 {[%clk 0:01:57]}  d5 {[%clk 0:01:38]} 23. exd5 {[%clk 0:01:54]}  Nxd5 {[%clk 0:01:39]} 24. Nxd5 {[%clk 0:01:51]}  Rxd5 {[%clk 0:01:40]} 25. Qe4 {[%clk 0:01:44]}  Rxa2 {[%clk 0:01:38]} 26. Ra1 {[%clk 0:01:41]}  Rxa1 {[%clk 0:01:28]} 27. Bxa1 {[%clk 0:01:42]}  Qd7 {[%clk 0:01:28]} 28. Qe3 {[%clk 0:01:35]}  Rd3 {[%clk 0:01:27]} 29. Qf4 {[%clk 0:01:23]}  f6 {[%clk 0:01:17]} 30. h5 {[%clk 0:01:11]}  h6 {[%clk 0:01:01]} 31. Rc3 {[%clk 0:01:10]}  Rd2+ {[%clk 0:01:00]} 32. Kh3 {[%clk 0:01:08]}  Rd1 {[%clk 0:00:52]} 33. Bb2 {[%clk 0:01:04]}  Rh1+ {[%clk 0:00:52]} 34. Kg2 {[%clk 0:00:55]}  Rxh5 {[%clk 0:00:42]} 35. Rc2 {[%clk 0:00:26]}  Rd5 {[%clk 0:00:40]} 36. Re2 {[%clk 0:00:24]}  Rd3 {[%clk 0:00:38]} 37. b4 {[%clk 0:00:20]}  e5 {[%clk 0:00:33]} 38. Qe4 {[%clk 0:00:18]}  Qd5 {[%clk 0:00:34]} 39. Qg4 {[%clk 0:00:17]}  Rd2 {[%clk 0:00:32]} 40. Kf2 {[%clk 0:00:10]}  Qd3 {[%clk 0:00:25]} 41. Qe6+ {[%clk 0:00:07]}  Kh8 {[%clk 0:00:25]} 42. Rxd2 {[%clk 0:00:02]}  Qxd2+ {[%clk 0:00:26]} 43. Kg1 {[%clk 0:00:03]}  Qxb2 {[%clk 0:00:26]} 44. Qf7 {[%clk 0:00:03]}  Qxb4 {[%clk 0:00:26]} 0-1


[Site "https://www.chess.com"]

[Event "Titled Tuesday Blitz December 13 Early 2022"]
[White "Thorhallsson, Simon"]
[Black "Terzi, Alexei"]
[WhiteFideId "2310090"]
[BlackFideId "13505076"]
[WhiteElo "2108"]
[BlackElo "2172"]
[Result "1-0"]
[Round "05"]
[TimeControl "180+1"]
[Date "2022.12.14"]
[WhiteClock "0:00:35"]
[BlackClock "0:00:11"]

1. Nf3 {[%clk 0:03:00]}  c5 {[%clk 0:02:59]} 2. c4 {[%clk 0:03:00]}  g6 {[%clk 0:02:59]} 3. Nc3 {[%clk 0:02:59]}  Nf6 {[%clk 0:02:57]} 4. e3 {[%clk 0:02:59]}  Bg7 {[%clk 0:02:55]} 5. d4 {[%clk 0:02:59]}  cxd4 {[%clk 0:02:55]} 6. exd4 {[%clk 0:02:59]}  d5 {[%clk 0:02:55]} 7. cxd5 {[%clk 0:02:59]}  O-O {[%clk 0:02:56]} 8. Bc4 {[%clk 0:02:51]}  Nbd7 {[%clk 0:02:55]} 9. d6 {[%clk 0:02:43]}  exd6 {[%clk 0:02:54]} 10. O-O {[%clk 0:02:43]}  Nb6 {[%clk 0:02:54]} 11. Bb3 {[%clk 0:02:42]}  d5 {[%clk 0:02:30]} 12. h3 {[%clk 0:02:41]}  Ne4 {[%clk 0:02:28]} 13. Re1 {[%clk 0:02:35]}  Nxc3 {[%clk 0:02:20]} 14. bxc3 {[%clk 0:02:36]}  h6 {[%clk 0:02:15]} 15. Bf4 {[%clk 0:02:32]}  Be6 {[%clk 0:02:13]} 16. Qd2 {[%clk 0:02:28]}  Kh7 {[%clk 0:02:12]} 17. h4 {[%clk 0:02:26]}  Rc8 {[%clk 0:02:08]} 18. h5 {[%clk 0:02:10]}  Bf5 {[%clk 0:01:59]} 19. hxg6+ {[%clk 0:02:05]}  fxg6 {[%clk 0:01:58]} 20. Be5 {[%clk 0:02:05]}  Be4 {[%clk 0:01:17]} 21. Bxg7 {[%clk 0:01:56]}  Kxg7 {[%clk 0:01:18]} 22. Ne5 {[%clk 0:01:53]}  Qh4 {[%clk 0:01:06]} 23. f3 {[%clk 0:01:42]}  Bf5 {[%clk 0:01:04]} 24. Re2 {[%clk 0:01:29]}  Qg5 {[%clk 0:00:54]} 25. Qxg5 {[%clk 0:01:03]}  hxg5 {[%clk 0:00:55]} 26. g4 {[%clk 0:01:02]}  Be6 {[%clk 0:00:48]} 27. Re3 {[%clk 0:00:59]}  Rf6 {[%clk 0:00:45]} 28. Rae1 {[%clk 0:00:56]}  Bg8 {[%clk 0:00:39]} 29. Kg2 {[%clk 0:00:52]}  Rc7 {[%clk 0:00:32]} 30. Kg3 {[%clk 0:00:51]}  Bf7 {[%clk 0:00:26]} 31. a4 {[%clk 0:00:48]}  a5 {[%clk 0:00:21]} 32. Bc2 {[%clk 0:00:48]}  Nc4 {[%clk 0:00:17]} 33. Nxc4 {[%clk 0:00:47]}  Rxc4 {[%clk 0:00:15]} 34. Rb1 {[%clk 0:00:44]}  b6 {[%clk 0:00:14]} 35. Bb3 {[%clk 0:00:39]}  Rc7 {[%clk 0:00:13]} 36. Rc1 {[%clk 0:00:39]}  Kf8 {[%clk 0:00:13]} 37. Re5 {[%clk 0:00:39]}  Rfc6 {[%clk 0:00:11]} 38. Bxd5 {[%clk 0:00:37]}  Bxd5 {[%clk 0:00:11]} 39. Rxd5 {[%clk 0:00:38]}  Rxc3 {[%clk 0:00:11]} 40. Rxc3 {[%clk 0:00:38]}  Rxc3 {[%clk 0:00:12]} 41. Rxg5 {[%clk 0:00:39]}  Kf7 {[%clk 0:00:12]} 42. Rb5 {[%clk 0:00:39]}  Rc6 {[%clk 0:00:12]} 43. d5 {[%clk 0:00:39]}  Rc4 {[%clk 0:00:10]} 44. Rxb6 {[%clk 0:00:38]}  Rxa4 {[%clk 0:00:11]} 45. Ra6 {[%clk 0:00:37]}  g5 {[%clk 0:00:08]} 46. d6 {[%clk 0:00:36]}  Ke6 {[%clk 0:00:08]} 47. Kf2 {[%clk 0:00:35]}  Ra3 {[%clk 0:00:07]} 48. Ke2 {[%clk 0:00:34]}  a4 {[%clk 0:00:06]} 49. Ra5 {[%clk 0:00:34]}  Kxd6 {[%clk 0:00:03]} 50. Rxg5 {[%clk 0:00:34]}  Rb3 {[%clk 0:00:03]} 51. Ra5 {[%clk 0:00:34]}  a3 {[%clk 0:00:04]} 52. Kf2 {[%clk 0:00:34]}  Ke6 {[%clk 0:00:04]} 53. Kg3 {[%clk 0:00:34]}  Kd6 {[%clk 0:00:04]} 54. g5 {[%clk 0:00:34]}  Kc6 {[%clk 0:00:05]} 55. Kg4 {[%clk 0:00:34]}  Kb6 {[%clk 0:00:05]} 56. Ra8 {[%clk 0:00:35]}  Kb7 {[%clk 0:00:06]} 57. Ra4 {[%clk 0:00:34]}  Kb6 {[%clk 0:00:06]} 58. f4 {[%clk 0:00:34]}  Kb5 {[%clk 0:00:06]} 59. Ra8 {[%clk 0:00:34]}  Rb4 {[%clk 0:00:06]} 60. g6 {[%clk 0:00:35]}  Ra4 {[%clk 0:00:06]} 61. Rb8+ {[%clk 0:00:34]}  Kc4 {[%clk 0:00:05]} 62. Rb1 {[%clk 0:00:35]}  a2 {[%clk 0:00:05]} 63. Ra1 {[%clk 0:00:35]}  Kc3 {[%clk 0:00:06]} 64. Kg5 {[%clk 0:00:35]}  Kb2 {[%clk 0:00:06]} 65. Rxa2+ {[%clk 0:00:35]}  Kxa2 {[%clk 0:00:06]} 66. g7 {[%clk 0:00:34]}  Ra8 {[%clk 0:00:07]} 67. f5 {[%clk 0:00:34]}  Kb3 {[%clk 0:00:08]} 68. f6 {[%clk 0:00:34]}  Kc4 {[%clk 0:00:09]} 69. f7 {[%clk 0:00:35]}  Kd5 {[%clk 0:00:09]} 70. f8=Q {[%clk 0:00:35]}  Rxf8 {[%clk 0:00:10]} 71. gxf8=Q {[%clk 0:00:35]}  Ke6 {[%clk 0:00:11]} 72. Qf5+ {[%clk 0:00:35]} 1-0


[Site "https://www.chess.com"]

[Event "Titled Tuesday Blitz December 13 Early 2022"]
[White "Timofeev, Artyom"]
[Black "Fedoseev, Vladimir"]
[WhiteFideId "4140419"]
[BlackFideId "24130737"]
[WhiteElo "2586"]
[BlackElo "2733"]
[Result "1-0"]
[Round "05"]
[TimeControl "180+1"]
[Date "2022.12.13"]
[WhiteClock "0:00:49"]
[BlackClock "0:00:04"]

1. d4 {[%clk 0:03:00]}  Nf6 {[%clk 0:01:09]} 2. Nc3 {[%clk 0:02:59]}  d5 {[%clk 0:01:08]} 3. Bf4 {[%clk 0:02:59]}  g6 {[%clk 0:01:08]} 4. e3 {[%clk 0:02:59]}  Bg7 {[%clk 0:01:08]} 5. h4 {[%clk 0:02:59]}  h5 {[%clk 0:01:07]} 6. Nf3 {[%clk 0:02:58]}  Bg4 {[%clk 0:01:06]} 7. Be2 {[%clk 0:02:57]}  c6 {[%clk 0:01:06]} 8. Ne5 {[%clk 0:02:56]}  Bxe2 {[%clk 0:01:05]} 9. Qxe2 {[%clk 0:02:56]}  Nbd7 {[%clk 0:01:04]} 10. O-O-O {[%clk 0:02:55]}  Qa5 {[%clk 0:01:00]} 11. Kb1 {[%clk 0:02:54]}  b5 {[%clk 0:00:55]} 12. Nxc6 {[%clk 0:02:46]}  Qb6 {[%clk 0:00:55]} 13. Qxb5 {[%clk 0:02:44]}  e6 {[%clk 0:00:53]} 14. Qxb6 {[%clk 0:02:41]}  Nxb6 {[%clk 0:00:40]} 15. Ne5 {[%clk 0:02:41]}  a6 {[%clk 0:00:38]} 16. f3 {[%clk 0:02:38]}  O-O {[%clk 0:00:37]} 17. Ne2 {[%clk 0:02:34]}  Rfc8 {[%clk 0:00:36]} 18. Nc1 {[%clk 0:02:34]}  a5 {[%clk 0:00:27]} 19. Ncd3 {[%clk 0:02:34]}  a4 {[%clk 0:00:27]} 20. a3 {[%clk 0:02:30]}  Nc4 {[%clk 0:00:21]} 21. Nxc4 {[%clk 0:02:28]}  dxc4 {[%clk 0:00:20]} 22. Nb4 {[%clk 0:02:28]}  c3 {[%clk 0:00:18]} 23. Be5 {[%clk 0:02:28]}  Nd7 {[%clk 0:00:14]} 24. Bxg7 {[%clk 0:02:25]}  Kxg7 {[%clk 0:00:15]} 25. Rd3 {[%clk 0:02:25]}  cxb2 {[%clk 0:00:15]} 26. Kxb2 {[%clk 0:02:24]}  Nb6 {[%clk 0:00:16]} 27. Rc3 {[%clk 0:02:18]}  Nc4+ {[%clk 0:00:16]} 28. Ka2 {[%clk 0:02:19]}  Ra7 {[%clk 0:00:16]} 29. Rd1 {[%clk 0:02:15]}  Rac7 {[%clk 0:00:16]} 30. d5 {[%clk 0:02:13]}  exd5 {[%clk 0:00:15]} 31. Rxd5 {[%clk 0:02:12]}  Nb6 {[%clk 0:00:15]} 32. Rxc7 {[%clk 0:02:11]}  Rxc7 {[%clk 0:00:15]} 33. Rd3 {[%clk 0:02:08]}  Rc4 {[%clk 0:00:15]} 34. e4 {[%clk 0:02:08]}  Rc5 {[%clk 0:00:12]} 35. Kb1 {[%clk 0:02:05]}  f5 {[%clk 0:00:10]} 36. exf5 {[%clk 0:02:01]}  gxf5 {[%clk 0:00:11]} 37. Kc1 {[%clk 0:01:59]}  Re5 {[%clk 0:00:10]} 38. Rc3 {[%clk 0:01:48]}  Re7 {[%clk 0:00:04]} 39. Rc6 {[%clk 0:01:46]}  Na8 {[%clk 0:00:04]} 40. Kd2 {[%clk 0:01:44]}  Nc7 {[%clk 0:00:05]} 41. c4 {[%clk 0:01:44]}  Kf7 {[%clk 0:00:02]} 42. Nd5 {[%clk 0:01:41]}  Nxd5 {[%clk 0:00:02]} 43. cxd5 {[%clk 0:01:41]}  Re5 {[%clk 0:00:03]} 44. Rc5 {[%clk 0:01:39]}  Ke7 {[%clk 0:00:03]} 45. Ra5 {[%clk 0:01:39]}  Kd6 {[%clk 0:00:03]} 46. Rxa4 {[%clk 0:01:33]}  Rxd5+ {[%clk 0:00:03]} 47. Ke3 {[%clk 0:01:32]}  Ke5 {[%clk 0:00:04]} 48. Rb4 {[%clk 0:01:27]}  Rc5 {[%clk 0:00:03]} 49. a4 {[%clk 0:01:16]}  Rc3+ {[%clk 0:00:02]} 50. Kf2 {[%clk 0:01:16]}  Ra3 {[%clk 0:00:03]} 51. Rb5+ {[%clk 0:01:16]}  Kf6 {[%clk 0:00:03]} 52. a5 {[%clk 0:01:15]}  Ra4 {[%clk 0:00:04]} 53. g3 {[%clk 0:01:06]}  Ra2+ {[%clk 0:00:04]} 54. Ke3 {[%clk 0:01:06]}  Ra3+ {[%clk 0:00:04]} 55. Ke2 {[%clk 0:01:06]}  Ra2+ {[%clk 0:00:05]} 56. Kd3 {[%clk 0:01:04]}  Ra3+ {[%clk 0:00:05]} 57. Kc4 {[%clk 0:01:04]}  Rxf3 {[%clk 0:00:05]} 58. Rb3 {[%clk 0:01:04]}  Rf1 {[%clk 0:00:02]} 59. Ra3 {[%clk 0:01:02]}  f4 {[%clk 0:00:01]} 60. gxf4 {[%clk 0:00:54]}  Rxf4+ {[%clk 0:00:01]} 61. Kd5 {[%clk 0:00:53]}  Rxh4 {[%clk 0:00:01]} 62. a6 {[%clk 0:00:53]}  Rg4 {[%clk 0:00:02]} 63. a7 {[%clk 0:00:53]}  Rg5+ {[%clk 0:00:01]} 64. Ke4 {[%clk 0:00:51]}  Rg8 {[%clk 0:00:01]} 65. a8=Q {[%clk 0:00:51]}  Rxa8 {[%clk 0:00:01]} 66. Rxa8 {[%clk 0:00:51]}  Kg5 {[%clk 0:00:01]} 67. Rg8+ {[%clk 0:00:50]}  Kh4 {[%clk 0:00:02]} 68. Kf3 {[%clk 0:00:50]}  Kh3 {[%clk 0:00:03]} 69. Rg3+ {[%clk 0:00:49]}  Kh4 {[%clk 0:00:04]} 70. Rg1 {[%clk 0:00:49]}  Kh3 {[%clk 0:00:04]} 71. Rh1# {[%clk 0:00:49]} 1-0


[Site "https://www.chess.com"]

[Event "Titled Tuesday Blitz December 13 Early 2022"]
[White "Torres Cueto, Jesus Marcial"]
[Black "Shtompel, Yuriy"]
[WhiteFideId "4415280"]
[BlackFideId "14168278"]
[WhiteElo "2022"]
[BlackElo "1844"]
[Result "1-0"]
[Round "05"]
[TimeControl "180+1"]
[Date "2022.12.14"]
[WhiteClock "0:00:23"]
[BlackClock "0:00:01"]

1. d4 {[%clk 0:03:00]}  Nf6 {[%clk 0:02:42]} 2. c4 {[%clk 0:03:00]}  e6 {[%clk 0:02:40]} 3. Nc3 {[%clk 0:03:00]}  d5 {[%clk 0:02:40]} 4. Bg5 {[%clk 0:03:00]}  Be7 {[%clk 0:02:40]} 5. e3 {[%clk 0:03:00]}  O-O {[%clk 0:02:39]} 6. cxd5 {[%clk 0:03:00]}  exd5 {[%clk 0:02:39]} 7. Bd3 {[%clk 0:02:59]}  c6 {[%clk 0:02:35]} 8. Nge2 {[%clk 0:02:59]}  Re8 {[%clk 0:02:35]} 9. O-O {[%clk 0:02:59]}  h6 {[%clk 0:02:33]} 10. Bh4 {[%clk 0:02:59]}  Ne4 {[%clk 0:02:33]} 11. Bxe7 {[%clk 0:02:44]}  Qxe7 {[%clk 0:02:32]} 12. Bxe4 {[%clk 0:02:37]}  dxe4 {[%clk 0:02:29]} 13. d5 {[%clk 0:02:37]}  Bg4 {[%clk 0:02:01]} 14. h3 {[%clk 0:02:34]}  Bh5 {[%clk 0:01:43]} 15. Qb3 {[%clk 0:01:58]}  cxd5 {[%clk 0:01:25]} 16. Nxd5 {[%clk 0:01:51]}  Qg5 {[%clk 0:00:50]} 17. Nef4 {[%clk 0:01:35]}  Nc6 {[%clk 0:00:42]} 18. Qxb7 {[%clk 0:01:26]}  Ne5 {[%clk 0:00:38]} 19. Nxh5 {[%clk 0:01:20]}  Qxh5 {[%clk 0:00:34]} 20. Nf4 {[%clk 0:01:16]}  Qg5 {[%clk 0:00:32]} 21. Qxe4 {[%clk 0:01:11]}  Rab8 {[%clk 0:00:26]} 22. b3 {[%clk 0:01:08]}  Qf6 {[%clk 0:00:15]} 23. Rad1 {[%clk 0:00:51]}  a5 {[%clk 0:00:09]} 24. Nd5 {[%clk 0:00:47]}  Qg5 {[%clk 0:00:05]} 25. Qf4 {[%clk 0:00:44]}  Qg6 {[%clk 0:00:04]} 26. e4 {[%clk 0:00:32]}  a4 {[%clk 0:00:02]} 27. b4 {[%clk 0:00:29]}  a3 {[%clk 0:00:02]} 28. f3 {[%clk 0:00:28]}  f6 {[%clk 0:00:01]} 29. b5 {[%clk 0:00:23]} 1-0


[Site "https://www.chess.com"]